[Event "1st FIDE Olympiad DIS 2023"]
[Site "Belgrade"]
[Date "2023.02.01"]
[Round "3.3"]
[White "Piekielny, Pawel"]
[Black "Morales Santos, Natasha"]
[Result "1-0"]
[ECO "B72"]
[WhiteElo "2230"]
[BlackElo "1893"]
[Annotator "TA"]
[PlyCount "129"]
[EventDate "2023.01.30"]
[EventType "team-tourn"]
[EventCountry "SRB"]
[SourceTitle "playchess.com"]
[Source "ChessBase"]
[SourceQuality "1"]
[WhiteTeam "Poland"]
[BlackTeam "Puerto Rico"]
[WhiteTeamCountry "POL"]
[BlackTeamCountry "PUR"]
[TimeControl "40/5400+30:1800+30"]

{[%evp 10,129,40,41,43,41,45,35,44,40,34,36,38,24,30,29,36,18,25,17,45,33,18,0,0,0,0,0,0,-8,0,0,0,0,0,0,0,0,0,0,0,0,0,0,0,0,0,0,14,14,14,14,14,0,0,0,14,14,14,14,22,14,14,0,24,6,7,9,29993,840,12840,5816,5816,8,12837,0,5412,12824,6342,5408,12838,0,1981,1380,1424,900,29997,861,616,0,12842,12843,12843,12843,12844,12844,12850,27999,27999,27999,27999,27999,27999,27999,27999,27999,27999,27999,27999,27999,27999,27999,27999,27999,27999,27999,27999,27999,27999,27999,27999,27999]} 1. e4 {[%emt 0:00:02]} c5 {[%emt 0:00:01]} 2. Nf3 {[%emt 0:00:20]} d6 {[%emt 0:00:06]} 3. d4 {[%emt 0:01:50]} cxd4 {[%emt 0:00:03]} 4. Nxd4 {[%emt 0:00:06]} Nf6 {[%emt 0:00:09]} 5. Nc3 {[%emt 0:00:12]} g6 {[%emt 0:00:10]} 6. Be3 {[%emt 0:01:08]} Nc6 {[%emt 0:00:27] B72: Sicilian Dragon: 6 Be3, lines with h3+Bc4 and sidelines.} 7. f3 {[%emt 0:01:44] Wards off Ng4} h5 {[%emt 0:00:25]} 8. Bc4 {[%emt 0:05:15]} Bd7 {[%emt 0:01:07] White is slightly better.} 9. O-O {[%emt 0:03:21]} Bg7 {[%emt 0:02:24] [#]} 10. Nxc6 $146 {[%emt 0:09:43]} ({Predecessor:} 10. Qd2 Ne5 11. Bb3 h4 12. Nd5 h3 13. g3 Nxd5 14. Bxd5 Qc7 15. Rac1 a5 16. b3 e6 {0-1 Fraser,W-Marturano,M (1939) ITA-AUS/NZL email 2013 [48]}) 10... Bxc6 {[%emt 0:08:56]} 11. Qe1 {[%emt 0:02:28]} O-O {[%emt 0:06:08]} 12. Qg3 {[%emt 0:12:46]} Kh7 {[%emt 0:16:33]} 13. Rad1 {[%emt 0:03:53]} Qa5 {[%emt 0:02:46]} 14. Bb3 {[%emt 0:04:32]} b5 {[%emt 0:07:34]} 15. Rfe1 {[%emt 0:17:26]} b4 {[%emt 0:15:43]} 16. Nd5 {[%emt 0:00:03]} Nxd5 {[%emt 0:01:21]} 17. exd5 {[%emt 0:00:04]} (17. Bxd5 Bxd5 18. Rxd5 Qxa2 $19) 17... Ba4 {[%emt 0:01:07]} 18. Bd4 {[%emt 0:01:07]} Bxb3 {[%emt 0:01:59]} 19. axb3 {[%emt 0:00:05]} Bxd4+ {[%emt 0:00:59]} 20. Rxd4 {[%emt 0:00:05]} Qc5 {[%emt 0:00:09][%csl LRc2,LRd4]} 21. Qf2 {[%emt 0:00:15]} Rac8 {[%emt 0:01:27][%cal Ba8c8,Bc8c2,Bc2b2][%mdl 32]} 22. Rxe7 {[%emt 0:08:19]} Qxc2 {[%emt 0:00:34]} 23. Qxc2 {[%emt 0:00:06]} (23. Rxa7 $2 Qb1+ 24. Qf1 Rc1 $19) 23... Rxc2 {[%emt 0:00:07]} 24. Rxb4 {[%emt 0:00:37]} Rxb2 $11 {[%emt 0:03:23][%mdl 4096] Endgame KRR-KRR} 25. Rbb7 {[%emt 0:02:36]} Kg8 {[%emt 0:03:44]} 26. h4 {[%emt 0:00:59]} Rd2 {[%emt 0:06:51]} 27. Rxa7 {[%emt 0:01:56]} Rxd5 {[%emt 0:01:23]} 28. Kf2 {[%emt 0:05:14]} Rd2+ {[%emt 0:05:38]} 29. Kg3 {[%emt 0:00:27]} d5 {[%emt 0:03:14][%cal Bd6d5,Bd5d4,Bd4d3,Bd3d2][%mdl 32]} 30. Red7 {[%emt 0:04:21]} d4 {[%emt 0:03:44]} 31. Ra4 {[%emt 0:03:42]} Rb8 {[%emt 0:00:40]} 32. Raa7 {[%emt 0:00:36]} Rf8 {[%emt 0:00:50]} 33. b4 {[%emt 0:02:31]} d3 {[%emt 0:00:23]} 34. Rab7 {[%emt 0:00:55]} Rd1 {[%emt 0:05:03]} 35. Kf4 {[%emt 0:01:34]} Rg1 {[%emt 0:01:50]} 36. g3 {[%emt 0:03:16]} Rc8 {[%emt 0:00:35]} 37. Rxf7 {[%emt 0:02:44] Hoping for Kg5.} (37. Ke3 $5 {[%cal Rd7f7]}) 37... d2 {[%emt 0:00:25]} 38. Rg7+ {[%emt 0:00:36]} Kh8 $2 {[%emt 0:00:17][%mdl 8192] Black is on the road to losing.} (38... Kf8 $11 39. Rh7 g5+ 40. Ke3 (40. Kxg5 Rxg3+ 41. Kf6 Rxf3+ 42. Kg5 Rg3+ 43. Kf6 Rf3+ 44. Kg6 Rg3+ 45. Kf6 Rf3+ $11) (40. hxg5 Kg8 $11) 40... d1=N+ 41. Kd4 Kg8) 39. Rh7+ {[%emt 0:00:43]} (39. Kg5 $142 d1=Q 40. Rh7+ Kg8 41. Rbg7+ Kf8 42. Kh6 (42. Rf7+ $2 Ke8 $19) 42... Qc1+ 43. f4 Qxf4+ 44. gxf4 Rh1 45. Rh8#) 39... Kg8 $18 {[%emt 0:00:01]} 40. Rbg7+ {[%emt 0:00:33]} (40. Kg5 $142 Rc6 41. Rhd7 Rxg3+ 42. Kf4 Rxf3+ {[%mdl 64] Decoy} 43. Kxf3 Rf6+ 44. Kg3 Rf7 45. Rd8+ (45. Rxf7 d1=Q $11) 45... Rf8 46. Rxf8+ Kxf8 47. Rd7) 40... Kf8 {[%emt 0:00:01]} 41. Rd7 $2 {[%emt 0:06:32]} (41. Rf7+ $18 Kg8 42. Rfg7+ Kf8 43. Kg5) 41... Kg8 $2 {[%emt 0:00:39][%mdl 8192]} (41... d1=R $2 42. Rh8#) (41... Rc4+ 42. Kg5 (42. Ke5 Kg8 $11) 42... Rxg3+ 43. Kh6 Ke8 44. Rb7 Rxf3 45. Rb8+) (41... g5+ $11 42. Ke3 (42. Kxg5 Kg8 $11) 42... d1=N+ 43. Kd4 (43. Rxd1 $2 Re8+ 44. Kd2 Rd8+ 45. Ke2 Rgxd1 $19) 43... Kg8) 42. Rdg7+ {[%emt 0:02:14]} (42. Rhg7+ Kf8 $16) (42. Kg5 $142 Rc6 43. Rhg7+ Kf8 44. Rdf7+ (44. Rxg6 $2 Rxg3+ 45. Kxh5 Rcxg6 $19) 44... Ke8 45. Rb7 (45. Re7+ Kd8 $16)) 42... Kf8 {[%emt 0:00:02]} 43. Kg5 $1 {[%emt 0:02:04][%cal Og5h6] Threatening mate with Kh6!} Rc6 {[%emt 0:12:15]} 44. Rd7 {[%emt 0:07:41][%cal Rh7h8]} Kg8 {[%emt 0:00:00] Prevents Rh8+} 45. Rdg7+ {[%emt 0:04:53]} (45. Rhg7+ $142 Kf8 46. Rdf7+ (46. Rxg6 Rxg3+ 47. Kxh5 Rcxg6 $19) 46... Ke8 47. Ra7 (47. Re7+ Kd8 $16)) 45... Kf8 {[%emt 0:00:00]} 46. Ra7 {[%emt 0:01:43][%cal Rh7h8]} Rxg3+ {[%emt 0:02:02]} 47. Kh6 {[%emt 0:00:18][%cal Rh7h8]} g5+ {[%emt 0:02:39]} 48. Kxh5 {[%emt 0:00:05][%cal Rh7h8]} Kg8 {[%emt 0:01:03] [#]} 49. Rhd7 $2 {[%emt 0:05:09]} (49. hxg5 d1=Q 50. Rhg7+ Kf8 51. Raf7+ Ke8 52. Re7+ Kd8 53. Rd7+ Qxd7 54. Rxd7+ Kxd7 55. f4 Ke6 56. Kg6 Rb6 57. b5 Rxb5 58. Kg7 Rb8 59. Kg6 Rg8+ 60. Kh7 Kf7 61. g6+ R8xg6 62. Kh8 Rh6#) ({White has to play} 49. Rag7+ $1 $18 Kf8 50. Rd7 (50. Rxg5 Rxg5+ 51. Kxg5 d1=Q 52. Rh8+ Kg7 53. Re8 Qd2+ 54. Kg4 Rf6 55. Re7+ Kf8 56. Kh3 Kxe7 57. f4 Rg6 58. h5 Qg2+ 59. Kh4 Qh2#)) 49... Rxf3 $2 {[%emt 0:05:46][%mdl 8192]} (49... Rc8 $11) 50. Ra8+ {[%emt 0:00:04]} ({Less strong is} 50. Rxd2 gxh4 51. b5 (51. Kxh4 Rc4+ 52. Kh5 Rxb4 $11) 51... Rb6 $14) 50... Rf8 {[%emt 0:00:07]} 51. Rxf8+ {[%emt 0:00:05]} Kxf8 {[%emt 0:00:01]} 52. hxg5 {[%emt 0:00:10] KR-KR} ({Stronger than} 52. Rxd2 gxh4 53. Rh2 (53. Kxh4 Ke7 $11) 53... Rc4 $11) 52... Rb6 {[%emt 0:01:49]} 53. Rxd2 {[%emt 0:00:21]} Rxb4 {[%emt 0:00:47] White mates.} 54. Kh6 {[%emt 0:01:27]} Rb8 {[%emt 0:02:35] [#]} 55. Kh7 $1 {[%emt 0:01:00]} Rb7+ {[%emt 0:00:19]} 56. Kh8 {[%emt 0:00:44]} Kf7 {[%emt 0:01:09]} 57. Rd6 {[%emt 0:01:22]} Rb5 {[%emt 0:07:06]} 58. g6+ {[%emt 0:00:23]} Ke7 {[%emt 0:00:01]} 59. Ra6 {[%emt 0:00:10]} Rh5+ {[%emt 0:00:32]} 60. Kg8 {[%emt 0:00:48]} Rh6 {[%emt 0:02:21]} 61. Ra7+ {[%emt 0:00:38]} Ke8 {[%emt 0:00:41]} 62. g7 {[%emt 0:00:15]} Rh1 {[%emt 0:00:19]} 63. Ra4 {[%emt 0:00:42]} Re1 {[%emt 0:00:26]} 64. Rh4 {[%emt 0:00:14]} Ke7 {[%emt 0:00:35]} 65. Kh7 {[%emt 0:00:06] Weighted Error Value: White=0.53/Black=0.18 (very precise)} 1-0

[Event "1st FIDE Olympiad DIS 2023"]
[Site "Belgrade"]
[Date "2023.02.01"]
[Round "3.3"]
[White "Shayusupov, Marsel"]
[Black "Dorner, Matthias"]
[Result "0-1"]
[ECO "D16"]
[WhiteElo "1580"]
[BlackElo "2180"]
[Annotator "TA"]
[PlyCount "70"]
[EventDate "2023.01.30"]
[EventType "team-tourn"]
[EventCountry "SRB"]
[SourceTitle "playchess.com"]
[Source "ChessBase"]
[SourceQuality "1"]
[WhiteTeam "Uzbekistan"]
[BlackTeam "Germany"]
[WhiteTeamCountry "UZB"]
[BlackTeamCountry "GER"]
[TimeControl "40/5400+30:1800+30"]

{[%evp 12,70,14,14,38,40,33,28,40,39,48,26,37,0,0,-36,-54,-47,0,0,0,-31,0,-33,0,-22,0,-11,7,-10,29,-14,2,0,18,-29,-18,-25,-28,-52,-54,-66,-59,-86,0,-51,0,-38,4,-26,33,46,27,-147,-132,-164,-164,-531,-540,-820,-818]} 1. d4 {[%emt 0:00:29]} d5 {[%emt 0:00:08]} 2. c4 {[%emt 0:00:06]} c6 {[%emt 0:00:03]} 3. Nf3 {[%emt 0:00:24]} Nf6 {[%emt 0:00:06]} 4. Nc3 {[%emt 0:00:27]} dxc4 {[%emt 0:00:09]} 5. a4 {[%emt 0:00:36]} e6 {[%emt 0:01:55]} 6. e3 {[%emt 0:01:22]} Bb4 {[%emt 0:01:03]} 7. Bxc4 {[%emt 0:00:46]} Nbd7 {[%emt 0:03:43] D16: Slav Defence: 5 a4: Lines with 5...Bg4 and 5...Na6.} 8. O-O {[%emt 0:00:42]} O-O {[%emt 0:01:22]} 9. Qc2 {[%emt 0:02:10]} Qc7 {[%emt 0:03:38] White has an edge.} 10. Bd2 {[%emt 0:04:54]} a5 {[%emt 0:00:33][%cal Ba7a5,Ba5b4][%mdl 32] [#]} 11. Rae1 $146 {[%emt 0:00:22]} (11. Bb3 {is more complex.} e5 12. Rfe1 exd4 13. exd4 Nb6 14. h3) ({Predecessor:} 11. Rac1 b6 12. Bd3 Bb7 13. e4 g6 14. e5 Bxc3 15. bxc3 {1-0 Arkell,K (2414)-Grigoryan,M (2020) High Wycombe e2e4 op 03 2012 (1)}) 11... b6 {[%emt 0:03:05]} 12. Ne4 {[%emt 0:23:44]} Nxe4 {[%emt 0:01:36]} 13. Bxb4 {[%emt 0:00:38]} axb4 {[%emt 0:01:01]} 14. Qxe4 {[%emt 0:00:02]} Ra5 {[%emt 0:03:04]} (14... Rxa4 $15 15. Ra1 Rxa1 16. Rxa1 Bb7) 15. Rc1 {[%emt 0:06:40][%cal Oc4b5]} Bb7 {[%emt 0:02:32]} 16. Qh4 {[%emt 0:01:56]} Qd8 {[%emt 0:02:35]} 17. Qf4 {[%emt 0:01:11]} Qb8 {[%emt 0:00:36]} 18. Qh4 {[%emt 0:00:50]} h6 {[%emt 0:02:06]} 19. b3 {[%emt 0:20:29]} Qd8 {[%emt 0:04:04]} 20. Qf4 {[%emt 0:01:17]} Qb8 {[%emt 0:01:27]} 21. Qh4 {[%emt 0:00:07]} Qd8 {[%emt 0:00:58]} 22. Qf4 {[%emt 0:00:03]} Rf5 {[%emt 0:00:19]} 23. Qg3 {[%emt 0:08:45]} (23. Qd6 $142) 23... c5 $11 {[%emt 0:00:23] [#] Threatens to win with ...Bxf3.} 24. Bd3 {[%emt 0:00:40]} Rh5 {[%emt 0:03:12]} 25. Be2 {[%emt 0:01:50]} Nf6 {[%emt 0:02:14]} 26. Rfd1 {[%emt 0:05:18]} Qa8 {[%emt 0:04:44]} 27. h4 {[%emt 0:01:50]} Rf5 {[%emt 0:00:45]} (27... Ne4 $17 28. Qg4 Nf6) 28. Qh3 {[%emt 0:02:40]} (28. Bd3 $11) 28... Be4 {[%emt 0:04:28]} (28... Rc8 $15) 29. Ne1 {[%emt 0:05:21]} Bb7 {[%emt 0:03:24]} 30. f3 {[%emt 0:00:41] Dodges Ne4} (30. g4 $5 Rd5 $8 31. Bf3 $11) 30... Nd5 {[%emt 0:00:27]} (30... cxd4 $11 31. Rxd4 Rd5) 31. g4 $1 $14 {[%emt 0:02:22]} Rf6 {[%emt 0:00:24][%cal Bf5f6,Bf6f4,Bf4e4][%mdl 32]} 32. f4 $2 {[%emt 0:01:29] [#]} ({White must play} 32. g5 $1 $11 Rf5 33. e4) 32... Nc3 $36 {[%emt 0:00:55][%mdl 2048] Black has strong initiative.} 33. Rd2 {[%emt 0:00:01]} cxd4 {[%emt 0:00:08]} 34. exd4 $2 {[%emt 0:00:07]} (34. g5 {is a better chance.} Nxe2+ 35. Rxe2) 34... Rxf4 $19 {[%emt 0:00:17]} 35. Qe3 {[%emt 0:02:52]} Re4 {[%emt 0:02:08] Weighted Error Value: White=0.51/Black=0.20 (precise)} 0-1

[Event "1st FIDE Olympiad DIS 2023"]
[Site "Belgrade"]
[Date "2023.02.01"]
[Round "3.4"]
[White "Rosikhin, Igor"]
[Black "Dukaczewski, Piotr"]
[Result "0-1"]
[ECO "B23"]
[WhiteElo "1856"]
[BlackElo "2131"]
[Annotator "TA"]
[PlyCount "70"]
[EventDate "2023.01.30"]
[EventType "team-tourn"]
[EventCountry "SRB"]
[SourceTitle "playchess.com"]
[Source "ChessBase"]
[SourceQuality "1"]
[WhiteTeam "Belarus"]
[BlackTeam "Poland"]
[WhiteTeamCountry "BLR"]
[BlackTeamCountry "POL"]
[TimeControl "40/5400+30:1800+30"]

{[%evp 16,70,0,-6,-17,-18,-4,-43,-33,-38,-47,-64,-64,-75,-73,-69,-64,-89,-96,-92,-76,-101,-73,-151,-144,-152,-161,-175,-164,-167,-178,-168,-160,-154,-149,-279,-282,-309,-313,-308,-243,-358,-350,-337,-337,-505,-505,-537,-490,-529,-512,-512,-502,-495,-459,-438,-428]} 1. e4 {[%emt 0:00:15]} c5 {[%emt 0:01:17]} 2. Nc3 {[%emt 0:00:18]} Nc6 {[%emt 0:00:30]} 3. f4 {[%emt 0:00:15]} g6 {[%emt 0:02:48]} 4. Nf3 {[%emt 0:02:12]} Bg7 {[%emt 0:00:26]} 5. Bb5 {[%emt 0:02:15]} Nd4 {[%emt 0:00:29]} 6. O-O {[%emt 0:00:14]} Nxb5 {[%emt 0:00:30]} 7. Nxb5 {[%emt 0:00:14]} d6 {[%emt 0:00:46]} 8. d3 {[%emt 0:01:54]} a6 $1 {[%emt 0:00:28][%mdl 4] is more profitable than 8...Nf6 at the moment.} 9. Nc3 {[%emt 0:00:12]} b5 {[%emt 0:00:37] B23: Closed Sicilian: Lines without g3.} 10. Qe1 {[%emt 0:02:46]} Bb7 {[%emt 0:00:38] [#]} 11. e5 $146 {[%emt 0:40:53]} ({Predecessor:} 11. f5 Nf6 12. Qh4 h6 13. fxg6 fxg6 14. e5 dxe5 15. Nxe5 g5 16. Qg3 Qd4+ 17. Be3 {½-½ Tari,A (2660)-Bacrot,E (2642) Titled Tuesday intern op 01st Feb-A blitz 2022 (4)}) 11... Nh6 {[%emt 0:05:39] Black is slightly better.} 12. exd6 {[%emt 0:10:03]} Qxd6 {[%emt 0:00:58]} 13. Ne4 {[%emt 0:01:09]} Qc7 {[%emt 0:01:12]} 14. c3 {[%emt 0:05:36]} Rd8 {[%emt 0:06:29]} 15. Qe2 {[%emt 0:03:54]} O-O {[%emt 0:00:00]} 16. Be3 {[%emt 0:01:13]} c4 {[%emt 0:02:23]} 17. Nc5 {[%emt 0:04:04]} cxd3 {[%emt 0:02:36]} 18. Nxd3 {[%emt 0:00:06]} Qc4 {[%emt 0:06:28]} 19. Nd4 {[%emt 0:08:59] [#]} (19. Rad1 $142) 19... Bxd4 $1 $17 {[%emt 0:05:55]} 20. cxd4 {[%emt 0:02:50] White is weak on the light squares} Nf5 $36 {[%emt 0:04:43][%cal Bh6f5,Bf5d4,Bd4e2][%mdl 2080] Keeping White busy. Black is more active.} 21. b3 {[%emt 0:02:30]} Nxd4 {[%emt 0:00:00]} 22. bxc4 {[%emt 0:01:27]} Nxe2+ {[%emt 0:00:10][%mdl 64] Discovered Attack} 23. Kf2 {[%emt 0:00:15]} Rxd3 {[%emt 0:02:44]} 24. Kxe2 {[%emt 0:00:09]} bxc4 {[%emt 0:00:39][%cal Bb5c4,Bc4c3][%mdl 32]} 25. g3 {[%emt 0:01:20]} (25. Rfd1 $17) 25... Bc8 $19 {[%emt 0:02:42]} 26. Rfc1 {[%emt 0:01:29]} Bg4+ {[%emt 0:00:37]} 27. Kf2 {[%emt 0:00:09]} Rb8 {[%emt 0:05:29] aiming for ...Rb2+.} 28. Rc2 {[%emt 0:02:00] Inhibits Rb2.} (28. Rab1 $142 Rc8 29. Rb4) 28... c3 {[%emt 0:03:58] White must now prevent ...Bd1.} 29. Rac1 {[%emt 0:02:00] [#]} Rc8 {[%emt 0:01:23] ...Bd1 would be deadly.} 30. a4 {[%emt 0:01:16]} (30. Rb1 {keeps fighting.}) 30... Bd1 {[%emt 0:04:04] Black is clearly winning.} 31. Ra2 {[%emt 0:00:07]} Rb8 {[%emt 0:01:56]} 32. a5 {[%emt 0:03:38]} Rb5 {[%emt 0:04:32]} 33. Bb6 {[%emt 0:00:24]} f6 {[%emt 0:04:42]} 34. Ke1 {[%emt 0:00:24]} Bb3 {[%emt 0:02:28]} 35. Re2 {[%emt 0:00:53]} Rbd5 {[%emt 0:00:00] White did not feel at home in the position after the opening.   Weighted Error Value: White=0.30/Black=0.07 (flawless)} 0-1

[Event "1st FIDE Olympiad DIS 2023"]
[Site "Belgrade"]
[Date "2023.02.01"]
[Round "3.4"]
[White "Mekus, Manuela"]
[Black "Kimsanboyev, Axadxon"]
[Result "0-1"]
[ECO "A07"]
[WhiteElo "1624"]
[BlackElo "1600"]
[Annotator "NA RC COMBH"]
[PlyCount "90"]
[EventDate "2023.01.30"]
[EventType "team-tourn"]
[EventCountry "SRB"]
[SourceTitle "playchess.com"]
[Source "ChessBase"]
[SourceQuality "1"]
[WhiteTeam "Germany"]
[BlackTeam "Uzbekistan"]
[WhiteTeamCountry "GER"]
[BlackTeamCountry "UZB"]
[TimeControl "40/5400+30:1800+30"]

1. Nf3 {[%emt 0:00:08]} Nf6 {[%emt 0:00:20]} 2. g3 {[%emt 0:00:09]} d5 {[%emt 0:00:17]} 3. d3 {[%emt 0:00:17]} Bf5 {[%emt 0:00:14]} 4. Bg2 {[%emt 0:00:19]} e6 {[%emt 0:00:13]} 5. O-O {[%emt 0:01:04]} Be7 {[%emt 0:00:12]} 6. Nbd2 {[%emt 0:00:42]} h6 {[%emt 0:00:08]} 7. c3 {[%emt 0:00:21]} O-O {[%emt 0:00:17]} 8. Ne5 {[%emt 0:03:01]} Qd6 {[%emt 0:10:02]} 9. Ndf3 {[%emt 0:02:31]} Nbd7 {[%emt 0:04:55]} 10. h3 {[%emt 0:08:37]} Bh7 {[%emt 0:09:02]} 11. Nxd7 {[%emt 0:03:36]} Qxd7 {[%emt 0:02:28]} 12. Ne5 {[%emt 0:00:24]} Qd6 {[%emt 0:01:00]} 13. d4 {[%emt 0:09:34]} c5 {[%emt 0:02:27]} 14. e3 {[%emt 0:04:10]} Ne4 {[%emt 0:07:21]} 15. Bxe4 {[%emt 0:11:32]} Bxe4 {[%emt 0:00:17]} 16. b3 {[%emt 0:01:09]} cxd4 {[%emt 0:15:44]} 17. exd4 {[%emt 0:03:16]} Rac8 {[%emt 0:02:00]} 18. c4 {[%emt 0:02:01]} dxc4 {[%emt 0:01:12]} 19. Nxc4 {[%emt 0:00:32]} Qc6 {[%emt 0:00:41]} 20. f3 {[%emt 0:00:23]} Bh7 {[%emt 0:00:23]} 21. Be3 {[%emt 0:03:05]} Qd5 {[%emt 0:01:54]} 22. Rc1 {[%emt 0:01:32]} b5 {[%emt 0:01:15]} 23. Ne5 {[%emt 0:01:46]} f6 {[%emt 0:02:41]} 24. Rxc8 {[%emt 0:01:14]} Rxc8 {[%emt 0:00:07]} 25. Ng4 {[%emt 0:02:28]} h5 {[%emt 0:01:52]} 26. Nh2 {[%emt 0:02:48]} Bd8 {[%emt 0:01:05]} 27. Rf2 {[%emt 0:02:03]} Bb6 {[%emt 0:02:06]} 28. Rd2 {[%emt 0:01:40]} Ba5 {[%emt 0:01:10]} 29. Rf2 {[%emt 0:03:42]} Rc3 {[%emt 0:07:12]} 30. Nf1 {[%emt 0:11:12]} Bg6 {[%emt 0:05:52]} 31. Rd2 {[%emt 0:05:04]} Rc8 {[%emt 0:01:00]} 32. Rf2 {[%emt 0:01:25]} e5 {[%emt 0:00:50]} 33. f4 {[%emt 0:01:17]} Rd8 {[%emt 0:02:39]} 34. f5 {[%emt 0:01:09]} Be8 {[%emt 0:00:30]} 35. Qf3 {[%emt 0:01:04]} Qxf3 {[%emt 0:00:40]} 36. Rxf3 {[%emt 0:00:01]} exd4 {[%emt 0:00:11]} 37. Bd2 {[%emt 0:00:23]} Bb6 {[%emt 0:00:20]} 38. b4 {[%emt 0:03:58]} Bc6 {[%emt 0:00:16]} 39. Rb3 {[%emt 0:04:49]} d3+ {[%emt 0:00:08]} 40. Kh2 {[%emt 0:01:26]} Re8 {[%emt 0:00:11]} 41. g4 {[%emt 0:05:23]} h4 {[%emt 0:00:10]} 42. Ng3 {[%emt 0:00:47]} hxg3+ {[%emt 0:00:08]} 43. Kxg3 {[%emt 0:00:09]} Bc7+ {[%emt 0:00:18]} 44. Kh4 {[%emt 0:00:01]} Kf7 {[%emt 0:00:25]} 45. Rxd3 {[%emt 0:00:09]} Rh8+ {[%emt 0:00:06]} 0-1

[Event "1st FIDE Olympiad DIS 2023"]
[Site "Belgrade"]
[Date "2023.02.01"]
[Round "3.5"]
[White "Soltanov, Serik"]
[Black "Sahin, Handenur"]
[Result "1/2-1/2"]
[ECO "D00"]
[WhiteElo "2266"]
[BlackElo "1915"]
[Annotator "TA"]
[PlyCount "21"]
[EventDate "2023.01.30"]
[EventType "team-tourn"]
[EventCountry "SRB"]
[SourceTitle "playchess.com"]
[Source "ChessBase"]
[SourceQuality "1"]
[WhiteTeam "Kazakhstan"]
[BlackTeam "Turkey"]
[WhiteTeamCountry "KAZ"]
[BlackTeamCountry "TUR"]
[TimeControl "40/5400+30:1800+30"]

{[%evp 9,21,-1,0,0,0,0,0,8,16,6,10,0,6,-6]} 1. d4 {[%emt 0:00:08]} d5 {[%emt 0:01:18]} 2. Bg5 {[%emt 0:00:41]} h6 {[%emt 0:04:37]} 3. Bh4 {[%emt 0:00:18]} Nf6 {[%emt 0:04:33]} 4. e3 {[%emt 0:00:49]} c5 {[%emt 0:03:30]} 5. c3 {[%emt 0:01:21]} Nc6 {[%emt 0:02:58] The position is equal.} 6. Nd2 {[%emt 0:01:09] D00: 1 d4 d5: Unusual lines.} e5 {[%emt 0:05:54]} 7. dxe5 {[%emt 0:04:21]} Nxe5 {[%emt 0:00:16]} 8. Ngf3 {[%emt 0:00:54][%cal Bg1f3,Bf3e5,Be5d7][%mdl 32]} Nc6 {[%emt 0:05:45]} 9. Bb5 {[%emt 0:24:36][%cal Oe3e4]} Be7 {[%emt 0:18:14] [#]} 10. Ne5 $146 {[%emt 0:14:52]} ({Predecessor:} 10. O-O O-O 11. c4 Qb6 12. Qe2 Be6 13. Rac1 a6 14. Bxc6 bxc6 15. b3 {0-1 Timerkhanov,A (2401)-Gutenev,A (2455) RUS-chT Blitz 2021 (10.5)}) 10... Bd7 {[%emt 0:08:27]} 11. Nxd7 {[%emt 0:01:22] An uneventful encounter.   Weighted Error Value: White=0.00 (flawless) /Black=0.02 (flawless)} 1/2-1/2